Cogmind - Beta 11.1 @@@ ROGUE MODE // 2022.05.30 @ 11:34:21 Player: Demise Result: Destroyed by Enhanced Grunt with Neutron Cannon Performance ------------- Evolutions (3) 1500 Regions Visited (9) 1800 Robots Destroyed (190) 950 Value Destroyed (4944) 4944 Prototype IDs (16) 320 Alien Tech Used (0) 0 Bonus (183) 183 TOTAL SCORE: 9697 Bonus ------- High Alert Combat Kills 1287 Follower Combat Kills 99 Met Data Miner 300 Friendly Fire -1503 Cogmind --------- Core Integrity 0/700 Matter 253/300 Energy 6/100 System Corruption 0% Temperature Cool (0) Movement Core (750) Ox14 Location -7/Data Miner Parts ------- > --- POWER (1) -------- (None) > --- PROPULSION (2) --- (None) > --- UTILITY (8) ------ Improved Cooling System High-capacity Storage Unit Advanced Visual Processing Unit Improved Signal Interpreter Launcher Guidance Computer > --- WEAPON (2) ------- Heavy Mace > --- INVENTORY (20) --- Light Nuclear Core Compact Battery (200) Machine Analyzer Improved Sensor Array Improved Salvage Targeting Computer EM Disruption Field Hacking Suite System Shield Makeshift System Shield Corruption Screen Long-range Tractor Beam Neutron Cannon Advanced EMP Blaster Advanced EMP Blaster Heavy Rocket Launcher Peak State ------------ > --- POWER ------------ Micro Nuclear Core > --- PROPULSION ------- Wheel Wheel > --- UTILITY ---------- High-capacity Storage Unit Advanced Visual Processing Unit Improved Signal Interpreter Launcher Guidance Computer Microactuators Heart of Steel > --- WEAPON ----------- Heavy Mace Blade Saw > --- INVENTORY -------- Micro Nuclear Core Improved Cooling System Compact Battery Machine Analyzer Improved Sensor Array Improved Salvage Targeting Computer Force Booster Hardened Heavy Armor Plating Layered Medium Armor Plating EM Disruption Field Hacking Suite System Shield Makeshift System Shield Corruption Screen Long-range Tractor Beam Gauss Rifle Advanced EMP Blaster Advanced EMP Blaster Heavy Rocket Launcher [Rating: 58] Favorites ----------- Power Heavy Ion Engine Engine Heavy Ion Engine Power Core Micro Nuclear Core Propulsion Wheel Leg Aluminum Leg Wheel Wheel Hover Unit Gravmag System Utility High-capacity Storage Unit Device Improved Sensor Array Storage High-capacity Storage Unit Processor Improved Signal Interpreter Hackware System Shield Protection Layered Light Armor Plating Weapon Heavy Mace Energy Gun Arc Projector Energy Cannon Cooled Particle Cannon Ballistic Gun Assault Rifle Launcher Advanced EMP Blaster Impact Weapon Heavy Mace Slashing Weapon Blade Saw Build | -11 -10 -10 -10 -9 -8 -7 -7 -7 -7 ------- Run | Scr Mat Min Exi Min Mat Fac Low Low Dat Slots Evolved 6 | . . . . . 4 2 . . . Power . | . . . . . . . . . . Propulsion . | . . . . . . . . . . Utility 6 | . . . . . 4 2 . . . Weapon . | . . . . . . . . . . Parts Attached 236 | 7 21 4 2 4 92 80 9 8 9 Power 13 | 1 3 . . 1 4 3 . 1 . Engine 9 | 1 3 . . 1 4 . . . . Core 4 | . . . . . . 3 . 1 . Reactor . | . . . . . . . . . . Propulsion 27 | 2 2 1 . 1 9 11 . 1 . Treads . | . . . . . . . . . . Leg 3 | . . . . . 2 1 . . . Wheel 23 | 2 2 1 . 1 7 9 . 1 . Hover 1 | . . . . . . 1 . . . Flight . | . . . . . . . . . . Utility 116 | 2 6 . 2 . 49 43 2 6 6 Device 76 | 1 2 . 1 . 32 28 2 6 4 Storage 8 | 1 3 . 1 . 3 . . . . Processor 7 | . . . . . 4 3 . . . Hackware 3 | . . . . . . 3 . . . Protection 22 | . 1 . . . 10 9 . . 2 Artifact . | . . . . . . . . . . Weapon 80 | 2 10 3 . 2 30 23 7 . 3 Energy Gun 1 | . . . . . 1 . . . . Energy Cannon 3 | . . . . . 2 . . . 1 Ballistic Gun 43 | 2 7 3 . 1 19 8 1 . 2 Ballistic Cannon . | . . . . . . . . . . Launcher 14 | . 1 . . 1 3 8 1 . . Special Weapon . | . . . . . . . . . . Impact Weapon 15 | . 2 . . . 5 4 4 . . Slashing Weapon 4 | . . . . . . 3 1 . . Piercing Weapon . | . . . . . . . . . . Special Melee Weapon . | . . . . . . . . . . Unidentified Prototypes 6 | . 1 . . . 3 . . 1 1 Parts Lost 36 | . 2 . . . 14 11 . 1 8 Power 3 | . 1 . . . . 1 . . 1 Propulsion 12 | . . . . . 5 5 . 1 1 Utility 12 | . . . . . 5 3 . . 4 Weapon 9 | . 1 . . . 4 2 . . 2 Highest Loss Streak 8 | . 2 . . . 4 2 . 1 8 To Critical Strikes 1 | . 1 . . . . . . . . Average Slot Usage (%) 92 | . 96 100 99 85 90 95 99 83 73 Engine 5 | . 13 14 14 13 8 1 . . . Core 3 | . . . . . . 4 7 7 6 Wheel 14 | . 28 28 28 14 9 13 15 13 5 Device 12 | . 3 14 13 14 16 9 23 15 12 Storage 9 | . 14 14 14 14 9 7 7 7 7 Processor 16 | . . . . . 13 25 23 23 23 Hackware 2 | . . . . . . 7 . . . Protection 6 | . 7 . . . 13 6 7 . 1 Ballistic Gun 10 | . 25 27 28 27 15 2 . . 1 Launcher 2 | . . . . . . 5 1 . . Impact Weapon 3 | . 1 . . . 1 3 5 7 7 Slashing Weapon 2 | . . . . . . 2 6 7 5 Naked Turns . | . . . . . . . . . . Heaviest Build 83 | 13 53 53 51 53 70 78 61 63 83 Greatest Support 28 | 26 26 26 26 28 28 26 20 20 10 Greatest Overweight (x) 27 | . 2 2 1 1 18 25 3 6 27 Average Overweight (x) 2 | . 1 1 1 1 2 2 2 3 5 Largest Inventory Capacity 20 | 8 20 20 20 20 20 20 20 20 20 Average Capacity 19 | 7 16 20 20 20 20 20 20 20 20 Most Carried 20 | 4 17 20 20 20 20 20 20 20 20 Average Carried 18 | 2 11 19 20 19 19 19 18 19 18 Final Capacity 20 | 8 20 20 20 20 20 20 20 20 20 Final Carried 20 | 4 17 20 20 20 20 17 20 20 15 Class Distribution -------------------- 46% | Mutant 24% | Scavenger-Mutant 19% | Scavenger-Assassin 6% | Hacker-Assassin Dominant Class ---------------- Mutant | -10/Materials Mutant | -10/Mines Mutant | -10/Exiles Mutant | -9/Mines Mutant | -8/Materials Scavenger-Mutant | -7/Factory Scavenger-Assassin | -7/Lower Caves Scavenger-Assassin | -7/Lower Caves Mutant | -7/Data Miner Resources | -11 -10 -10 -10 -9 -8 -7 -7 -7 -7 ----------- Run | Scr Mat Min Exi Min Mat Fac Low Low Dat Matter Collected 6189 | 241 496 111 10 185 2270 2006 150 655 65 Remotely 2204 | . . . . . 735 1049 . 420 . Salvage Created 8720 | 138 495 115 . 220 2665 4642 116 264 65 Parts 474 | 10 32 1 . 15 147 252 7 10 . Haulers Intercepted 9 | . 2 . . . 5 2 . . . Recyclers Shooed 5 | . . 1 . . . 3 . 1 . Parts Field Recycled . | . . . . . . . . . . Retrieved Matter . | . . . . . . . . . . Parts Self-Destructed 6 | . . . . . . . 1 5 . Prevented 3 | . . . . . . . 3 . . Kills | -11 -10 -10 -10 -9 -8 -7 -7 -7 -7 ------- Run | Scr Mat Min Exi Min Mat Fac Low Low Dat Combat Hostiles Destroyed 120 | . 9 1 . 6 42 58 1 2 1 Melee 7 | . . . . . . 5 . 2 . Guns 60 | . 9 1 . 3 40 7 . . . AOE 43 | . . . . 3 2 37 1 . . Classes Destroyed 19 | 2 5 . . 2 5 3 1 1 . Worker 23 | . 4 . . 1 6 12 . . . Builder 34 | . . . . 2 . 32 . . . Tunneler 8 | 2 . . . . 3 3 . . . Hauler 9 | . 2 . . . 5 2 . . . Recycler 15 | 1 . 1 . . 2 11 . . . Carrier 1 | . . . . . . 1 . . . Mechanic 1 | . . . . . . 1 . . . Operator 5 | . 1 . . . 4 . . . . Watcher 5 | . . . . . 3 2 . . . Swarmer 17 | . 3 1 . 2 2 7 . 2 . Grunt 74 | . 6 . . 3 27 38 . . . Brawler 2 | . . . . . 1 1 . . . Duelist 3 | . . . . 1 1 1 . . . Protector 1 | . . . . . 1 . . . . Sentry 10 | . . . . . 9 1 . . . Hunter 4 | . . . . . 1 2 1 . . Programmer 8 | . . . . . . 8 . . . Enhanced Grunt 1 | . . . . . . . . . 1 Decomposer 2 | . . . . . . . . 2 . Packrat 1 | . . . . . . . . 1 . Tinkerer 2 | . . . . . . . . 2 . Mutant 2 | . . . . . . . 1 1 . Best Kill Streak 8 | 3 4 1 . 6 5 8 1 2 1 Combat Bots Only 6 | . 3 1 . 5 5 6 1 2 1 Max Kills in Single Turn 3 | 1 2 1 . 2 2 3 1 1 1 Gunslinging . | . . . . . . . . . . Exploded 3 | . . . . 2 2 3 1 . . Melee 1 | . . . . . . 1 . 1 . Uniques/NPCs Destroyed . | . . . . . . . . . . Combat | -11 -10 -10 -10 -9 -8 -7 -7 -7 -7 -------- Run | Scr Mat Min Exi Min Mat Fac Low Low Dat Damage Taken 7024 | . 409 46 . 166 2575 1942 56 210 1620 Core 1310 | . 85 . . 55 455 268 10 75 362 Absorbed by Shields . | . . . . . . . . . . Redirected to Shielding 13 | . . . . . 13 . . . . Regen/Repaired (Parts) 120 | . 91 . . . 29 . . . . Core Remaining (%) 53 | 100 . . . 44 17 . . . . Volleys Fired 515 | 4 46 7 . 25 205 211 4 . 13 Largest 2 | 2 2 2 . 2 2 2 1 . 1 Hottest 75 | 40 50 40 . 40 75 46 36 . 28 Shots Fired 798 | 8 89 13 . 46 400 225 4 . 13 Gun 607 | 8 88 13 . 41 395 49 . . 13 Cannon . | . . . . . . . . . . Launcher 191 | . 1 . . 5 5 176 4 . . Special . | . . . . . . . . . . Kinetic 602 | 8 88 13 . 41 390 49 . . 13 Thermal . | . . . . . . . . . . Explosive 34 | . 1 . . 5 5 23 . . . Electromagnetic 162 | . . . . . 5 153 4 . . Robot Hit Streak 17 | 5 11 1 . 6 17 14 . . 8 Robot Miss Streak 5 | . 5 2 . 2 5 3 . . 3 Penetration Max . | . . . . . . . . . . Secondary Targets 8 | . . . . 1 7 . . . . Max Gunslinging Chain 1 | . . . . 1 1 . . . . Shots Hit Robots 555 | 5 50 5 . 30 292 129 4 16 24 Core Hits 334 | 3 22 1 . 20 115 159 4 7 3 Critical Kills 3 | . 1 . . . 1 . . 1 . Critical Parts Destroyed 8 | . . . . . 1 4 . 1 2 Critical Strikes 20 | . 1 . . . 2 9 . 4 4 Destroy 2 | . 1 . . . 1 . . . . Smash 9 | . . . . . 1 4 . 2 2 Sever 9 | . . . . . . 5 . 2 2 Melee Attacks 245 | . 8 1 . . 28 116 23 51 18 Impact 175 | . 8 1 . . 28 72 17 35 14 Slashing 70 | . . . . . . 44 6 16 4 Piercing . | . . . . . . . . . . Sneak Attacks 35 | . . 1 . . 5 13 4 11 1 Combat Hostiles . | . . . . . . . . . . Follow-up Attacks 12 | . . . . . . 11 . . 1 Damage Inflicted 18558 | 69 772 123 . 527 5834 9272 233 873 855 Guns 6539 | 69 720 49 . 287 4621 632 . . 161 Cannons . | . . . . . . . . . . Explosions 8217 | . 24 . . 240 694 7179 80 . . Melee 3802 | . 28 74 . . 519 1461 153 873 694 Ramming . | . . . . . . . . . . Kinetic 6490 | 69 720 49 . 287 4572 632 . . 161 Thermal 677 | . . . . . . 677 . . . Explosive 2360 | . 24 . . 240 694 1402 . . . Electromagnetic 5229 | . . . . . 49 5100 80 . . Impact 2729 | . 28 74 . . 519 857 . 630 621 Slashing 1073 | . . . . . . 604 153 243 73 Piercing . | . . . . . . . . . . Highest Corruption 2 | . 1 1 1 1 2 2 . . . Average Corruption 1 | . 1 1 1 1 2 1 . . . Corruption Purged 2 | . . . . . . 2 . . . Corruption Blocked 8 | . . . . . . 8 . . . Effects 38 | . 7 5 1 7 17 1 . . . Message Errors 6 | . . 1 1 1 3 . . . . Matter Fused 10 | . 1 2 . 2 4 1 . . . Heat Flow Errors 5 | . 1 . . 1 3 . . . . Energy Discharges 6 | . 2 1 . . 3 . . . . Data Loss (minor) 6 | . 1 . . 2 3 . . . . Data Loss (major) 1 | . 1 . . . . . . . . Misfires 2 | . 1 . . 1 . . . . . Alerts 1 | . . . . . 1 . . . . Weapon Failures 1 | . . 1 . . . . . . . Overload Shots . | . . . . . . . . . . Overflow Damage 1378 | . . 44 . 12 312 672 . 193 145 Projectiles . | . . . . . . . . . . Explosions 324 | . . . . 12 80 232 . . . Melee 1054 | . . 44 . . 232 440 . 193 145 Knockbacks 8 | . 1 . . . 1 3 . 1 2 Impact 8 | . 1 . . . 1 3 . 1 2 Kinetic . | . . . . . . . . . . Secondary . | . . . . . . . . . . Self-Inflicted Damage 9 | . . . . . . 9 . . . Shots 1 | . . . . . . 1 . . . Rammed . | . . . . . . . . . . Targets Rammed . | . . . . . . . . . . Kicked . | . . . . . . . . . . Crushed . | . . . . . . . . . . Highest Temperature 250 | 6 250 4 . 172 159 117 . . . Average Temperature 28 | 6 115 1 . 22 28 17 . . . Received Heat Transfer 1986 | . 138 . . 12 1305 531 . . . Siege Activations . | . . . . . . . . . . Robots Corrupted 12 | . . . . . . 12 . . . Combat Hostiles 8 | . . . . . . 8 . . . Parts Fried 52 | . . . . . 3 47 . . 2 Impact Corruptions 36 | . . 2 . . 4 19 . 6 5 Robots Melted . | . . . . . . . . . . Combat Hostiles . | . . . . . . . . . . Parts Melted . | . . . . . . . . . . Heat Transferred 800 | . . . . . . 800 . . . Parts Sabotaged . | . . . . . . . . . . Parts Stolen . | . . . . . . . . . . Parts Stripped . | . . . . . . . . . . Power Chain Reactions 26 | . . . . . . 26 . . . Missiles Intercepted . | . . . . . . . . . . Alert | -11 -10 -10 -10 -9 -8 -7 -7 -7 -7 ------- Run | Scr Mat Min Exi Min Mat Fac Low Low Dat Peak Influence 1817 | 15 236 131 . 291 680 1817 . . . Initial 309 | . 9 52 . . 39 309 . . . Average 361 | 5 103 98 . 145 302 528 . . . Maximum Alert Level 5 | . 1 . . 1 2 5 . . . Low Security (%) 48 | 100 98 100 . 66 40 31 . . . Level 1 26 | . 1 . . 33 30 34 . . . Level 2 11 | . . . . . 29 6 . . . Level 3 5 | . . . . . . 10 . . . Level 4 5 | . . . . . . 11 . . . Level 5 2 | . . . . . . 5 . . . High Security . | . . . . . . . . . . Max Security . | . . . . . . . . . . Squads Dispatched 35 | . 5 . . 1 6 23 . . . Investigation 9 | . 3 . . 1 1 4 . . . Extermination 7 | . . . . . . 7 . . . Reinforcement 15 | . 2 . . . 3 10 . . . Assault 3 | . . . . . 1 2 . . . Garrison 1 | . . . . . 1 . . . . Intercept . | . . . . . . . . . . Searches Triggered . | . . . . . . . . . . Construction Impeded 10 | . . . . . . 10 . . . Haulers Reinforced . | . . . . . . . . . . Active Scanning Responses . | . . . . . . . . . . Cargo Convoy Interrupts . | . . . . . . . . . . Stealth | -11 -10 -10 -10 -9 -8 -7 -7 -7 -7 --------- Run | Scr Mat Min Exi Min Mat Fac Low Low Dat Distress Signals 7 | . . . . . 5 2 . . . Communications Jammed . | . . . . . . . . . . Distress Signals . | . . . . . . . . . . Times Spotted 178 | . 17 5 . 11 63 72 1 4 5 Peak Tracking Total 7 | . 4 3 . 6 7 6 1 3 4 Tactical Retreats 12 | . 1 . . 1 1 3 . 4 2 Traps | -11 -10 -10 -10 -9 -8 -7 -7 -7 -7 ------- Run | Scr Mat Min Exi Min Mat Fac Low Low Dat Traps Triggered 11 | . 3 . . . 6 2 . . . Indirectly . | . . . . . . . . . . Trap Hack Attempts . | . . . . . . . . . . Triggered . | . . . . . . . . . . Disarmed . | . . . . . . . . . . Reprogrammed . | . . . . . . . . . . Reused . | . . . . . . . . . . Traps Extracted . | . . . . . . . . . . Installed . | . . . . . . . . . . Triggered . | . . . . . . . . . . Machines | -11 -10 -10 -10 -9 -8 -7 -7 -7 -7 ---------- Run | Scr Mat Min Exi Min Mat Fac Low Low Dat Machines Disabled 15 | . . . . . 5 10 . . . Max in Single Turn 7 | . . . . . 1 7 . . . Garrison Access 2 | . . . . . . 2 . . . Machines Sabotaged . | . . . . . . . . . . Garrisons Compromised . | . . . . . . . . . . Overloaded Fab Kills . | . . . . . . . . . . Hacking | -11 -10 -10 -10 -9 -8 -7 -7 -7 -7 --------- Run | Scr Mat Min Exi Min Mat Fac Low Low Dat Machines Accessed 38 | . 9 . 1 1 8 14 1 1 3 Terminals 21 | . 6 . . . 6 8 1 . . Fabricators 1 | . . . . . . 1 . . . Repair Stations 2 | . 1 . . . 1 . . . . Recycling Units 5 | . 2 . . . 1 2 . . . Scanalyzers 1 | . . . . . . 1 . . . Garrison Access 2 | . . . . . . 2 . . . Total Hacks 126 | . 25 . 1 1 23 50 1 1 24 Successful 79 | . 13 . 1 1 13 25 1 1 24 Failed 44 | . 11 . . . 9 24 . . . Catastrophic 8 | . 4 . . . 3 1 . . . Database Lockouts 3 | . 1 . . . 1 1 . . . Manual 68 | . 19 . . . 17 32 . . . Terminals 68 | . 18 . . . 18 31 1 . . Fabricators 2 | . . . . . . 2 . . . Repair Stations 4 | . 2 . . . 2 . . . . Recycling Units 16 | . 5 . . . 3 8 . . . Scanalyzers 4 | . . . . . . 4 . . . Garrison Access 5 | . . . . . . 5 . . . Terminal Hacks 43 | . 4 . 1 1 6 5 1 1 24 Record 13 | . . . 1 . . . 1 . 11 Part Schematic 11 | . . . . . . 1 . . 10 Robot Schematic 1 | . . . . . . 1 . . . Robot Analysis 3 | . 2 . . . 1 . . . . Prototype ID Bank 3 | . . . . . . . . . 3 Open Door 2 | . . . . 1 . . . 1 . Level Access Points 1 | . . . . . . 1 . . . Branch Access Points 3 | . 1 . . . 1 1 . . . Terminal Index 3 | . 1 . . . 1 1 . . . Locate Traps 1 | . . . . . 1 . . . . Recall Reinforcements 1 | . . . . . 1 . . . . Hauler Manifests 1 | . . . . . 1 . . . . Fabricator Hacks 2 | . . . . . . 2 . . . Load Schematic 1 | . . . . . . 1 . . . Build 1 | . . . . . . 1 . . . Repair Station Hacks 4 | . 2 . . . 2 . . . . Scan Component 2 | . 1 . . . 1 . . . . Repair 2 | . 1 . . . 1 . . . . Recycling Unit Hacks 5 | . 2 . . . 1 2 . . . Retrieve Components 5 | . 2 . . . 1 2 . . . Scanalyzer 3 | . . . . . . 3 . . . Insert Component 1 | . . . . . . 1 . . . Analyze 2 | . . . . . . 2 . . . Garrison Access Hacks 2 | . . . . . . 2 . . . Seal Access 2 | . . . . . . 2 . . . Unauthorized Hacks 20 | . 5 . . . 4 11 . . . Terminals 14 | . 3 . . . 4 7 . . . Assimilate 2 | . . . . . . 2 . . . Botnet 9 | . 1 . . . 4 4 . . . Detonate 1 | . 1 . . . . . . . . Operators 2 | . 1 . . . . 1 . . . Fabricators . | . . . . . . . . . . Repair Stations . | . . . . . . . . . . Recycling Units 6 | . 2 . . . . 4 . . . Reject 1 | . . . . . . 1 . . . Recyclers 1 | . . . . . . 1 . . . Mask 1 | . . . . . . 1 . . . Tunnel 3 | . 2 . . . . 1 . . . Scanalyzers . | . . . . . . . . . . Garrison Access . | . . . . . . . . . . Data Cores Recovered . | . . . . . . . . . . Used . | . . . . . . . . . . Hacking Detections 22 | . 6 . . . 6 10 . . . Full Trace Events 8 | . 4 . . . 1 3 . . . Feedback Events 1 | . 1 . . . . . . . . Corruption 1 | . 1 . . . . . . . . Feedback Blocked . | . . . . . . . . . . Robot Schematics Acquired 1 | . . . . . . 1 . . . Robots Built . | . . . . . . . . . . Authchips . | . . . . . . . . . . Time . | . . . . . . . . . . Total Robot Build Rating . | . . . . . . . . . . Part Schematics Acquired 11 | . . . . . . 1 . . 10 Parts Built 1 | . . . . . . 1 . . . Authchips . | . . . . . . . . . . Time 73 | . . . . . . 73 . . . Total Part Build Rating 3 | . . . . . . 3 . . . Parts Repaired 2 | . 1 . . . 1 . . . . Time 70 | . 26 . . . 44 . . . . Parts Recycled . | . . . . . . . . . . Recycled Matter . | . . . . . . . . . . Retrieved Matter . | . . . . . . . . . . Retrieved Components 26 | . 12 . . . 1 13 . . . Parts Scanalyzed 1 | . . . . . . 1 . . . Part Schematics Acquired . | . . . . . . . . . . Parts Damaged . | . . . . . . . . . . Bothacking | -11 -10 -10 -10 -9 -8 -7 -7 -7 -7 ------------ Run | Scr Mat Min Exi Min Mat Fac Low Low Dat Used RIF Installer . | . . . . . . . . . . Robots Hacked . | . . . . . . . . . . Non-combat . | . . . . . . . . . . Combat . | . . . . . . . . . . Robot Hacks Applied . | . . . . . . . . . . Relay Couplers Released . | . . . . . . . . . . Fabnet Peak Effective % . | . . . . . . . . . . Robots Rewired . | . . . . . . . . . . Allies Hacked . | . . . . . . . . . . Hacks Repelled . | . . . . . . . . . . Allies | -11 -10 -10 -10 -9 -8 -7 -7 -7 -7 -------- Run | Scr Mat Min Exi Min Mat Fac Low Low Dat Total Allies 5 | . . 4 . . . 1 . . . Largest Group 4 | . . 4 3 3 . 1 . . . Highest-Rated Group 71 | . . 71 40 40 . 26 . . . Highest-Rated Ally 31 | . . 31 16 16 . 26 . . . Total Orders 4 | . . . . 2 . 2 . . . STAY 2 | . . . . 1 . 1 . . . FOLLOW 2 | . . . . 1 . 1 . . . Ally Attacks 21 | . . 5 . 16 . . . . . Total Damage 287 | . . 91 . 196 . . . . . Kills 10 | . . 5 . 5 . . . . . Allies Corrupted . | . . . . . . . . . . Allies Melted 1 | . . . . 1 . . . . . Intel | -11 -10 -10 -10 -9 -8 -7 -7 -7 -7 ------- Run | Scr Mat Min Exi Min Mat Fac Low Low Dat Robot Analysis Total 3 | . 2 . . . 1 . . . . Derelict Logs Recovered 6 | . . 2 . 1 . . 2 1 . Drone Launches . | . . . . . . . . . . Drone Recoveries . | . . . . . . . . . . Exploration | -11 -10 -10 -10 -9 -8 -7 -7 -7 -7 ------------- Run | Scr Mat Min Exi Min Mat Fac Low Low Dat Turns Passed 12239 | 66 1107 597 205 672 2657 4613 977 1035 310 Spaces Moved 6866 | 45 784 522 187 506 1312 1990 750 643 127 Core 9 | 2 . . . . 3 2 . . 2 Treads . | . . . . . . . . . . Legs 40 | . . . . . 26 14 . . . Wheels 6814 | 43 784 522 187 506 1283 1971 750 643 125 Hover 3 | . . . . . . 3 . . . Flight . | . . . . . . . . . . Fastest Speed 50 | 50 90 105 105 105 110 105 110 110 155 Average Speed 123 | 88 108 105 105 114 136 128 112 130 181 Slowest Speed 1400 | 100 120 120 105 115 950 1300 125 170 1400 Overloaded Moves . | . . . . . . . . . . Propulsion Burnouts . | . . . . . . . . . . Robots Hopped . | . . . . . . . . . . Cave-ins Triggered . | . . . . . . . . . . Exploration Rate (%) 72 | 4 98 96 59 98 88 32 90 82 78 Regions Visited 9 Branch Regions 6 Pre-discovered Areas 7 | . 2 . 1 1 . 1 1 . 1 Known Exits Taken 5 | . 1 . . . 1 1 1 1 . Unknown Exits Taken 4 | 1 . 1 1 1 . . . . . Scrap Searched 7 | . . 1 . 1 . . 2 3 . Spaces Dug 132 | . 5 . . 7 18 66 15 21 . Terrain Destroyed 430 | . 15 . . 42 54 283 15 21 . Melee 100 | . 5 . . . 18 41 15 21 . Projectile . | . . . . . . . . . . AOE 330 | . 10 . . 42 36 242 . . . Terrain Rammed . | . . . . . . . . . . Walls Destroyed . | . . . . . . . . . . Machines Disabled . | . . . . . . . . . . Actions | -11 -10 -10 -10 -9 -8 -7 -7 -7 -7 --------- Run | Scr Mat Min Exi Min Mat Fac Low Low Dat Total 9594 | 59 934 556 195 561 1867 3632 853 767 170 Wait 1553 | . 51 13 5 13 166 1190 67 47 1 Move 6857 | 44 783 521 186 505 1311 1989 749 642 127 Hop . | . . . . . . . . . . Pick Up 91 | 4 14 5 . 6 28 22 2 10 . Fast Attach 66 | 7 9 . 2 2 23 18 2 1 2 Attach 39 | . 1 . . . 20 12 . 1 5 Detach 23 | . 3 . . . 8 8 . 3 1 Swap 131 | . 11 4 . 2 49 50 7 6 2 Drop 102 | . 8 5 2 8 29 33 2 13 2 Fire 515 | 4 46 7 . 25 205 211 4 . 13 Melee 217 | . 8 1 . . 28 99 20 44 17 Ram . | . . . . . . . . . . Kick . | . . . . . . . . . . Crush . | . . . . . . . . . . Escape Stasis . | . . . . . . . . . . Rewire . | . . . . . . . . . . Trap . | . . . . . . . . . . Miscellaneous . | . . . . . . . . . . Route ------- -11/Scrapyard -10/Materials (discovered 4 exits: [*Mat x3] / *Min) -10/Mines (discovered 3 exits: [*Mat x2] / *Exi) -10/Exiles -9/Mines (discovered 2 exits: *Mat x2) -8/Materials (discovered 3 exits: *Fac x3) -7/Factory (discovered 8 exits: *Fac x4 / *Sto x2 / *Low x2) -7/Lower Caves -7/Lower Caves -7/Data Miner (discovered 1 exit: *Pro) History --------- Turn | Location | Event 24 | -11/Scrapyard | Discovered new exit (range 16) 67 | -11/Scrapyard | Entered Materials 89 | -10/Materials | Central database locked down 187 | -10/Materials | Discovered new exit (range 5) 238 | -10/Materials | Identified exit to Mines 315 | -10/Materials | Build established: Mutant 678 | -10/Materials | Discovered new exit (range 13) 969 | -10/Materials | Repaired Assault Rifle 1083 | -10/Materials | Discovered new exit (range 16) 1174 | -10/Materials | Entered Mines 1176 | -10/Mines | Discovered new exit (range 10) 1177 | -10/Mines | Received a Mining Laser from a helpful Derelict 1262 | -10/Mines | Assisted by bots powering up and referring to "LRC-V3" 1526 | -10/Mines | Discovered new exit (range 9) 1548 | -10/Mines | Learned Materials garrison access intel 1585 | -10/Mines | Learned Materials emergency access door positions 1759 | -10/Mines | Deemed a non-threat by the Exiles lab entrance 1759 | -10/Mines | Discovered new exit (range 5) 1771 | -10/Mines | Entered Exiles 1771 | -10/Exiles | Accompanied by 3 allies 1797 | -10/Exiles | Met 8R-AWN 1816 | -10/Exiles | Met EX-HEX 1844 | -10/Exiles | Met EX-BIN 1891 | -10/Exiles | Met EX-DEC 1908 | -10/Exiles | Learned location of Zion (-6) 1962 | -10/Exiles | Discovered new exit (range 10) 1976 | -10/Exiles | Entered Mines 1976 | -9/Mines | Accompanied by 3 allies 1981 | -9/Mines | Met a Derelict shopkeep closing up shop 1996 | -9/Mines | Met a Derelict bent on vengeance 2100 | -9/Mines | Received a Rocket Launcher from a helpful Derelict 2104 | -9/Mines | Discovered new exit (range 7) 2168 | -9/Mines | Core integrity fell below 50% 2266 | -9/Mines | Learned location of Storage (-7) 2322 | -9/Mines | Discovered new exit (range 5) 2648 | -9/Mines | Entered Materials 2648 | -8/Materials | Evolved 4 slots: Utility x4 2649 | -8/Materials | Identified exit to Factory 2651 | -8/Materials | Loaded intel: 1 garrison access location 2773 | -8/Materials | Central database locked down 3062 | -8/Materials | Discovered exit to Factory (range 3) 3527 | -8/Materials | Garrison activated, responded to threat 4600 | -8/Materials | Lost 3 parts (1n2u) 4648 | -8/Materials | First assault squad dispatched 4685 | -8/Materials | Repaired Energy Filter 4711 | -8/Materials | Core integrity fell below 50% 4748 | -8/Materials | Lost 4 parts (2n2w) 5056 | -8/Materials | Core integrity fell below 20% 5066 | -8/Materials | Build established: Scavenger-Mutant 5191 | -8/Materials | Discovered exit to Factory (range 16) 5305 | -8/Materials | Entered Factory 5305 | -7/Factory | Evolved 2 slots: Utility x2 6283 | -7/Factory | Identified exit to Factory 6385 | -7/Factory | Build established: Hacker-Assassin 6475 | -7/Factory | P-60 Hacker assimilated allied Administrator 4a 6501 | -7/Factory | Identified exit to Storage 6501 | -7/Factory | Identified exit to Lower Caves 6570 | -7/Factory | Central database locked down 7259 | -7/Factory | Fabricated Hacking Suite? 7403 | -7/Factory | Build established: Scavenger-Assassin 8143 | -7/Factory | Build established: Scavenger-Mutant 8687 | -7/Factory | Build established: Mutant 8933 | -7/Factory | First assault squad dispatched 9051 | -7/Factory | Build established: Scavenger-Mutant 9918 | -7/Factory | Entered Lower Caves 10210 | -7/Lower Caves | Build established: Scavenger-Assassin 10678 | -7/Lower Caves | Discovered new exit (range 14) 10691 | -7/Lower Caves | Identified exit to Lower Caves 10747 | -7/Lower Caves | Encountered a Warlord checkpoint 10895 | -7/Lower Caves | Entered another Lower Caves area 10910 | -7/Lower Caves | Found Prototype Device 10935 | -7/Lower Caves | Identified Heart of Steel 11018 | -7/Lower Caves | Learned 4 Factory zone layouts 11441 | -7/Lower Caves | Encountered a Warlord checkpoint 11645 | -7/Lower Caves | Discovered new exit (range 8) 11708 | -7/Lower Caves | Identified exit to Data Miner 11762 | -7/Lower Caves | Core integrity fell below 50% 11930 | -7/Lower Caves | Entered Data Miner 11930 | -7/Data Miner | Discovered new exit (range 6) 11939 | -7/Data Miner | Identified exit to Proximity Caves 11958 | -7/Data Miner | Met Data Miner 11992 | -7/Data Miner | Learned location of Section 7 (-3) 11992 | -7/Data Miner | Acquired the access code to Warlord's prototype stash 12017 | -7/Data Miner | Received God Mode back door access code from Data Miner 12058 | -7/Data Miner | Build established: Mutant 12137 | -7/Data Miner | Data Conduit disabled 12210 | -7/Data Miner | Core integrity fell below 20% 12240 | -7/Data Miner | Destroyed by Enhanced Grunt with Neutron Cannon Last Messages --------------- 12178_ Slug penetrates Data Conduit. 12187_ Destroyed Adv. Heat Sink. 12187_ Enhanced Grunt system corrupted by crushing effect. 12187_ Enhanced Grunt knocked back. 12195_ Hrd. Heavy Armor Plating destroyed. 12205_ Mic. Nuclear Core destroyed. 12207_ Acquired Prototype Energy Cannon. 12207_ Identified Neutron Cannon. 12209_ Enhanced Grunt suffers critical hit (Smash). 12209_ Destroyed Prototype Leg. 12209_ Enhanced Grunt system corrupted by crushing effect. 12210_ Enhanced Grunt system terminally corrupted. 12210_ Neutron Cannon fried. 12210_ Antimatter Reactor fried. 12211_ Acquired 65 matter. 12213_ Slug penetrates Enhanced Grunt. 12225_ Slug penetrates Data Conduit. 12230_ Gauss Rifle destroyed. 12232_ Lyr. Medium Armor Plating destroyed. 12238_ Microactuators destroyed. Map ----- +----------------------------------------------------+ | | | | | | | | | | | | | | | | | | | | | | | | | | | | | | | | | | | | | ?????????????????????????????????????????? | | ?????????????????????????????????????????? | | ?????????????????????????????????????????? | | ??????????????????###????????????????????? | | ???????????????### ##???????????????####? | | ?????###########;;;;;#?????????????###! #? | | ????#"""""""""""] ######????????## #? | | ????""""""""" @ """"""# # ###### > ##? | | ???""""""""" ## | | ???""""""" g | | ??#""""""" | | ??#"""""" | | ??#""""""" | | ???""""""" """"""""""""""""## | | ???""""""" "" "###############? | | ????""""""" "" ""#;#??????????????? | | ????#"""""""" "#######??????????????? | | ?????####### ## g"#????????????????????? | | ???????????#"### "#????????????????????? | | ???????????#"### "#????????????????????? | | ???????????#"## "#????????????????????? | | ???????????#"## "#????????????????????? | | ?????????????# "#????????????????????? | | ?????????????### "#????????????????????? | | ???????????????# "##???????????????????? | | ??????????????## ""#???????????????????? | | ?????????????## ""#???????????????????? | | ????????#"##"#"X ""#???????????????????? | | ????????#"""""" "#####???????????????? | | ????????##""""" X"""""#???????????????? | | ?????????###"#"X "##"##???????????????? | | ???????????#"## X""""#????????????????? | +----------------------------------------------------+ Best States ------------- Heat Dissipation 64 Energy Generation 15 Energy Capacity 480 Matter Stores 300 Matter Capacity 300 Sight Range 20 Robot Scan Range 15 Terrain Scan Density 10 Corruption Block 8 Armor Coverage 600 Resistance: KI 20 Utility Shielding 33 Weapon Cycling 15 Melee Speed Boost 20 Evasion (%) 42 Targeting Accuracy 8 Launcher Accuracy 20 Energy Filtering 30 Kinecelleration 30 Force Boost 20 Offensive Hacking 20 Defensive Hacking 10 Item Schematics ----------------- Hacking Suite | -7/Factory | Hacked Combat Drone Bay | -7/Data Miner | Free Lgt. Regenerative Plating | -7/Data Miner | Free Cld. Aerolev Unit | -7/Data Miner | Free Gravity Neutralizer | -7/Data Miner | Free Scatter Rocket Array | -7/Data Miner | Free Cmb. Gravmag System | -7/Data Miner | Free Lyr. Heavy Armor Plating | -7/Data Miner | Free Hyp. Coil Gun | -7/Data Miner | Free Neutrino Core | -7/Data Miner | Free Imp. Cloaking Device | -7/Data Miner | Free Robot Schematics ------------------ O-24 Administrator | -7/Factory | Hacked Fabricated ------------ Hacking Suite | x1 | -7/Factory Alien Tech Used ----------------- None Achievements -------------- None Challenges ------------ None Game ------ Seed ColdFlightHammer Manual? 0 Play Time 02:18:25 Cumulative 528.8 hours Start 2022.05.30 @ 09:13:42 End 2022.05.30 @ 11:34:21 Sessions 3 Manual Loads 0 Difficulty Rogue Special Mode None Game No. 429 Rogue 429 Adventurer 0 Explorer 0 Win Type - Total 4 Types 3/0/0/1/0/0/0/0/0 Lore% 71 Gallery% 82 Achievement% 66 Wizard Run 0 Options --------- ASCII 0 Keyboard 1 Movement Numpad Keybinds 0 Fullscreen 1 Font 12/Terminus Map View 83x54 Tactical HUD 1 Map Filters NONE Filters NONE Steam 1 RUN: 015ebe19-cb1e-477e-b669-c30c55ef1d24